bitfinex/quotes_SOLUSD_20251126
["timestamp","ask_amount","ask_price","bid_price","bid_amount"]
[1764181413817,7.50386281,144.13,144.12,50.0]
[1764181414218,10.74386281,144.13,144.12,50.0]
[1764181415317,17.68204361,144.13,144.12,50.0]
[1764181415518,17.68204361,144.13,144.1,50.0]
[1764181415721,7.50386281,144.11,144.1,50.0]
[1764181416335,7.50386281,144.11,144.08,50.0]
[1764181416543,7.50386281,144.09,144.08,50.0]
[1764181416842,10.74386281,144.09,144.08,50.0]
[1764181417044,10.74386281,144.09,144.06,50.0]
[1764181417227,7.50386281,144.07,144.06,50.0]
[1764181417539,7.50386281,144.07,144.01,50.0]
[1764181417738,7.50386281,144.02,143.97,50.0]
[1764181417943,3.24,144.01,143.97,50.0]
[1764181418138,58.98272151,144.11,144.02,50.0]
[1764181418442,7.50386281,144.05,144.02,50.0]
[1764181418742,10.74386281,144.04,144.02,50.0]
[1764181418945,3.24,144.03,144.02,50.0]
[1764181419249,7.50386281,144.04,144.02,50.0]
[1764181419429,24.28700297,144.11,144.05,50.0]
[1764181419628,7.50386281,144.07,144.05,50.0]
[1764181419835,3.24,144.06,144.05,50.0]
[1764181420037,7.50386281,144.07,144.05,50.0]
[1764181420345,7.50386281,144.11,144.09,50.0]
[1764181420534,3.24,144.1,144.09,50.0]
[1764181420737,10.74386281,144.1,144.09,50.0]
[1764181421429,10.74386281,144.1,144.07,50.0]
[1764181421743,7.50386281,144.09,144.07,50.0]
[1764181422247,3.24,144.08,144.07,50.0]
[1764181422446,10.74386281,144.08,144.07,50.0]
[1764181422629,3.24,144.08,144.07,50.0]
[1764181422942,10.74386281,144.08,144.07,50.0]
[1764181423939,3.24,144.08,144.07,50.0]
[1764181424442,10.74386281,144.08,144.07,50.0]
[1764181425123,3.24,144.08,144.07,50.0]
[1764181425324,10.74386281,144.08,144.07,50.0]
[1764181425523,10.74386281,144.08,144.05,50.0]
[1764181425736,7.50386281,144.07,144.05,50.0]
[1764181427323,3.24,144.08,144.05,56.94194232]
[1764181427523,7.50386281,144.06,144.02,50.0]
[1764181427730,7.50386281,144.03,144.02,50.0]
[1764181428726,31.80435575,144.03,144.0,50.0]
[1764181429038,31.80435575,144.03,143.98,50.0]
[1764181429039,7.50386281,144.01,143.98,50.0]
[1764181429246,7.50386281,143.99,143.98,50.0]
[1764181429429,10.72386281,143.99,143.98,50.0]
[1764181429841,10.72386281,143.99,143.96,50.0]
[1764181430046,3.22,143.99,143.96,50.0]
[1764181430229,3.22,144.04,144.02,50.0]
[1764181430429,3.22,144.04,144.02,56.94340978]
[1764181430723,7.50386281,144.09,144.05,50.0]
[1764181430923,7.50386281,144.09,144.07,50.0]
[1764181430924,3.22,144.08,144.07,50.0]
[1764181431442,10.72386281,144.08,144.07,50.0]
[1764181431942,3.22,144.08,144.07,50.0]
[1764181432146,10.72386281,144.08,144.07,50.0]
[1764181434354,17.66445137,144.08,144.07,50.0]
[1764181434855,17.66445137,144.08,144.05,50.0]
[1764181435055,7.50386281,144.06,144.03,50.0]
[1764181435353,7.50386281,144.04,144.03,50.0]
[1764181435728,7.50386281,144.04,143.99,50.0]
[1764181435936,6.94492673,143.99,143.97,50.0]
[1764181436248,10.72386281,143.98,143.97,50.0]
[1764181436447,10.72386281,143.98,143.95,0.2]
[1764181436772,10.72386281,143.98,143.92,0.2]
[1764181436773,7.50386281,143.96,143.92,0.2]
[1764181436962,7.50386281,143.93,143.92,0.2]
[1764181437534,16.31380773,143.93,143.92,0.2]
[1764181437752,8.80994492,143.92,143.83,50.0]
[1764181437951,7.50386281,143.84,143.81,50.0]
[1764181438153,7.50386281,143.82,143.81,50.0]
[1764181438346,10.72386281,143.83,143.81,50.0]
[1764181438546,3.22,143.83,143.81,56.95354281]
[1764181438738,3.22,143.83,143.81,57.67354281]
[1764181438938,3.22,143.83,143.82,0.72]
[1764181439359,3.22,143.83,143.8,0.2]
[1764181439360,11.04386281,143.83,143.8,0.2]
[1764181439543,7.50386281,143.81,143.8,0.2]
[1764181439747,0.32,143.88,143.8,0.2]
[1764181439957,7.50386281,143.82,143.81,6.95356812]
[1764181440264,3.22,143.82,143.8,0.2]
[1764181440445,3.22,143.82,143.81,50.0]
[1764181440642,3.22,143.82,143.8,0.2]
[1764181440835,3.22,143.82,143.81,50.0]
[1764181441339,6.94927032,143.9,143.84,50.0]
[1764181441538,7.50386281,143.86,143.84,50.0]
[1764181441745,3.22,143.85,143.84,50.0]
[1764181442269,10.72386281,143.85,143.84,50.0]
[1764181442450,10.72386281,143.85,143.82,50.0]
[1764181442688,6.94927032,143.9,143.84,50.0]
[1764181442951,7.50386281,143.85,143.84,50.0]
[1764181443255,7.50386281,143.86,143.84,50.0]
[1764181443448,3.22,143.85,143.84,50.0]
[1764181443763,10.72386281,143.85,143.82,50.0]
[1764181443945,7.50386281,143.83,143.8,57.15398728]
[1764181444139,7.50386281,143.82,143.8,57.87398728]
[1764181444467,10.72386281,143.81,143.8,50.2]
[1764181444655,3.22,143.81,143.8,57.15410292]
[1764181444843,10.72386281,143.81,143.8,50.2]
[1764181445048,10.72386281,143.81,143.8,0.2]
[1764181445952,7.50386281,143.81,143.8,0.2]
[1764181446277,0.32,143.87,143.8,50.9]
[1764181446562,7.50386281,143.82,143.8,50.9]
[1764181446746,10.72386281,143.81,143.8,50.9]
[1764181447057,10.72386281,143.81,143.8,0.2]
[1764181447461,3.22,143.81,143.8,57.85410292]
[1764181447655,3.22,143.81,143.8,50.2]
[1764181447960,3.22,143.81,143.8,57.85410292]
[1764181448565,7.50386281,143.83,143.8,57.85410292]
[1764181448770,3.22,143.82,143.8,57.85410292]
[1764181449465,7.50386281,143.86,143.84,50.0]
[1764181449762,3.22,143.85,143.84,50.0]
[1764181449967,7.50386281,143.86,143.84,50.0]
[1764181450262,3.22,143.85,143.84,50.0]
[1764181450848,10.72386281,143.85,143.84,50.0]
[1764181451271,3.22,143.85,143.84,57.65216907]
[1764181451769,7.50386281,143.89,143.86,50.0]
[1764181451960,3.22,143.88,143.86,50.0]
[1764181452147,3.22,143.88,143.87,6.95071939]
[1764181452642,10.72386281,143.88,143.86,57.65100513]
[1764181453564,10.72386281,143.88,143.86,50.7]
[1764181453867,10.72386281,143.88,143.86,50.0]
[1764181454063,7.50386281,143.91,143.88,50.0]
[1764181454266,0.697107,143.9,143.83,50.0]
[1764181454472,7.26849517,143.92,143.85,50.0]
[1764181454473,7.50386281,143.86,143.85,50.0]
[1764181454860,7.50386281,143.87,143.85,50.0]
[1764181455071,10.72386281,143.89,143.87,50.0]
[1764181455561,10.72386281,143.89,143.87,50.67]
[1764181456168,10.72386281,143.89,143.88,6.9502363]
[1764181456468,7.50386281,143.89,143.88,7.6202363]
[1764181456644,3.22,143.89,143.88,7.6202363]
[1764181456845,7.50386281,143.91,143.89,50.0]
[1764181457068,3.22,143.9,143.89,50.0]
[1764181457250,10.72386281,143.9,143.89,50.0]
[1764181457652,10.72386281,143.9,143.87,50.0]
[1764181457975,7.50386281,143.88,143.87,50.0]
[1764181458871,15.15120611,143.88,143.82,50.67]
[1764181459073,7.50386281,143.83,143.82,50.67]
[1764181459572,7.50386281,143.83,143.82,50.0]
[1764181460281,7.50386281,143.83,143.8,57.82405554]
[1764181460456,10.17217674,143.84,143.81,0.67]
[1764181460656,0.697107,143.86,143.81,21.61]
[1764181460856,930.60717505,144.29,143.94,50.0]
[1764181460857,0.71,143.99,143.94,50.0]
[1764181461066,9.83504726,143.99,143.94,50.0]
[1764181461954,7.50386281,143.97,143.94,50.67]
[1764181462162,3.22,143.96,143.94,50.67]
[1764181462458,3.22,143.96,143.95,6.94685654]
[1764181462861,7.50386281,144.0,143.96,50.0]
[1764181463176,7.50386281,143.98,143.96,50.0]
[1764181463397,10.72386281,143.99,143.96,50.0]
[1764181463565,0.1,144.03,144.0,50.0]
[1764181463566,7.60386281,144.03,144.0,50.0]
[1764181463881,7.50386281,144.01,143.98,50.0]
[1764181464187,7.50386281,143.99,143.98,50.0]
[1764181464359,7.50386281,144.0,143.98,50.0]
[1764181464876,7.50386281,144.0,143.98,56.94534496]
[1764181465784,7.50386281,144.0,143.98,50.0]
[1764181465983,7.50386281,144.0,143.98,56.94526221]
[1764181466654,11.65055315,144.0,143.98,56.94526221]
[1764181466854,11.65055315,144.0,143.98,50.0]
[1764181467279,12.36055315,144.0,143.98,50.0]
[1764181467773,11.65055315,144.0,143.98,50.0]
[1764181468076,11.65055315,144.0,143.98,56.94527132]
[1764181468586,11.65055315,144.0,143.96,16.308864]
[1764181468587,6.94540908,143.98,143.96,50.0]
[1764181468775,3.22,143.97,143.92,50.0]
[1764181469086,11.65055315,143.93,143.92,50.0]
[1764181469377,14.87055315,143.93,143.9,50.0]
[1764181469560,11.46528769,143.92,143.9,50.0]
[1764181470066,14.87055315,143.93,143.9,56.94925429]
[1764181470666,3.22,143.93,143.9,74.9924301]
[1764181470878,3.22,143.93,143.9,86.64298325]
[1764181471068,3.22,143.92,143.9,86.64298325]
[1764181471376,3.22,143.92,143.9,74.9924301]
[1764181471578,17.36352271,143.98,143.9,74.3224301]
[1764181471579,6.94594117,143.97,143.9,74.3224301]
[1764181471775,11.65055315,143.94,143.9,74.9924301]
[1764181471971,0.71,143.99,143.94,50.0]
[1764181472178,14.87055315,143.98,143.94,50.0]
[1764181472381,11.65055315,143.97,143.94,50.0]
[1764181472567,11.65055315,143.96,143.94,50.0]
[1764181472767,11.65055315,143.97,143.94,50.0]
[1764181472965,18.59651734,143.97,143.94,50.0]
[1764181473176,11.65055315,143.95,143.92,50.0]
[1764181473391,0.71,143.96,143.92,50.0]
[1764181473392,3.22,143.94,143.92,50.0]
[1764181473708,3.22,143.94,143.93,0.67]
[1764181473872,3.22,143.94,143.92,56.94816977]
[1764181473873,3.22,143.94,143.92,57.61816977]
[1764181474366,3.22,143.94,143.92,50.0]
[1764181474570,11.65055315,143.94,143.92,50.0]
[1764181474769,3.22,143.93,143.92,50.0]
[1764181475182,3.22,143.93,143.92,56.94830461]
[1764181476290,7.6550364,143.99,143.94,50.0]
[1764181476466,11.65055315,143.97,143.94,50.0]
[1764181476790,11.65055315,143.97,143.94,56.9472551]
[1764181477786,11.65055315,143.97,143.94,56.94732795]
[1764181478163,11.65055315,143.96,143.94,50.0]
[1764181478773,12.36055315,143.96,143.94,50.0]
[1764181478978,11.65055315,143.96,143.94,50.0]
[1764181479311,15.58055315,143.98,143.94,56.94733107]
[1764181479667,11.65055315,143.97,143.94,50.0]
[1764181480181,10.16544215,143.98,143.94,50.0]
[1764181480182,12.36055315,143.96,143.94,50.0]
[1764181481594,0.71,143.95,143.92,50.0]
[1764181481800,3.22,143.94,143.92,50.0]
[1764181482021,3.22,143.94,143.92,56.94823543]
[1764181482327,3.22,143.94,143.92,57.61823543]
[1764181482671,3.22,143.94,143.92,69.26878858]
[1764181482870,0.0998,162.2,143.92,69.26878858]
[1764181482871,90.6294719,146.8,143.92,69.26878858]
[1764181483072,11.65055315,143.97,143.94,1.99999999]
[1764181483266,13.43055315,143.97,143.94,1.99999999]
[1764181483891,11.65055315,143.96,143.94,1.99999999]
[1764181484788,8.72616999,143.97,143.94,1.99999999]
[1764181484987,11.65055315,143.96,143.94,1.99999999]
[1764181485588,11.65055315,143.96,143.93,6.94771654]
[1764181485897,11.65055315,143.96,143.94,1.99999999]
[1764181486501,13.43055315,143.97,143.94,1.99999999]
[1764181486876,13.43055315,143.97,143.93,8.94771653]
[1764181487400,51.02099701,144.05,143.94,52.68999999]
[1764181487580,51.02099701,144.05,143.95,1.99999999]
[1764181487581,11.65055315,143.99,143.95,1.99999999]
[1764181487781,11.65055315,143.98,143.95,1.99999999]
[1764181487982,11.65055315,143.98,143.94,51.99999999]
[1764181488175,17.35795364,144.03,143.91,50.0]
[1764181488176,11.65055315,143.95,143.91,50.0]
[1764181488375,18.30886399,143.97,143.87,50.0]
[1764181488376,11.65055315,143.92,143.87,50.0]
[1764181488679,11.65055315,143.9,143.87,56.9507035]
[1764181489290,11.65055315,143.89,143.87,50.0]
[1764181489494,11.65055315,143.88,143.87,50.0]
[1764181489701,11.65055315,143.88,143.87,56.95071939]
[1764181489883,3.22,143.91,143.87,58.95058852]
[1764181490197,20.94,144.08,143.85,50.0]
[1764181490198,11.65055315,143.88,143.85,50.0]
[1764181490406,11.65055315,143.88,143.86,1.99999999]
[1764181491401,18.60094291,143.88,143.86,1.99999999]
[1764181491589,11.65055315,143.87,143.86,1.99999999]
[1764181491901,6.94986505,143.89,143.86,1.99999999]
[1764181492101,6.94986505,143.89,143.85,56.95164713]
[1764181492102,11.65055315,143.88,143.85,56.95164713]
[1764181492400,11.65055315,143.86,143.84,3.22]
[1764181492585,11.65055315,143.85,143.84,3.22]
[1764181492908,17.37225761,143.91,143.82,53.22]
[1764181493096,11.65055315,143.89,143.85,59.64126529]
[1764181493274,11.65055315,143.89,143.85,60.8612653]
[1764181493476,11.65055315,143.89,143.86,0.69]
[1764181493700,119.32705092,144.25,143.88,50.0]
[1764181493885,11.65055315,144.0,143.9,50.0]
[1764181494081,11.65055315,143.93,143.91,3.22]
[1764181494692,11.65055315,143.94,143.91,3.22]
[1764181495001,55.31695682,144.1,143.93,50.0]
[1764181495002,11.65055315,143.96,143.93,50.0]
[1764181495222,11.65055315,143.94,143.91,50.0]
[1764181495391,11.65055315,143.92,143.91,50.0]
[1764181495794,11.65055315,144.0,143.91,53.22]
[1764181496095,11.65055315,143.93,143.91,53.22]
[1764181496502,11.65055315,143.93,143.91,55.21999999]
[1764181496808,11.65055315,143.92,143.91,53.22]
[1764181496991,11.65055315,143.93,143.91,50.0]
[1764181497191,11.65055315,143.93,143.92,3.22]
[1764181498094,18.59842865,143.93,143.9,1.99999999]
[1764181498293,18.59842865,143.93,143.91,3.22]
[1764181499504,18.59842865,143.93,143.92,3.22]
[1764181500484,6.9473714,143.94,143.92,3.22]
[1764181500684,11.65055315,143.93,143.92,3.22]
[1764181501124,11.65055315,143.93,143.86,51.99999999]
[1764181501304,11.65055315,143.89,143.87,3.22]
[1764181501489,11.65055315,143.89,143.87,5.21999999]
[1764181501685,11.65055315,143.88,143.86,51.99999999]
[1764181501996,11.65055315,143.89,143.87,3.22]
[1764181502194,11.65055315,143.88,143.87,3.22]
[1764181502401,11.65055315,143.9,143.89,1.99999999]
[1764181502596,11.65055315,143.9,143.87,5.21999999]
[1764181502809,33.40151161,143.99,143.89,1.99999999]
[1764181503021,33.40151161,143.99,143.9,3.22]
[1764181503306,34.72705635,143.98,143.9,3.22]
[1764181504205,11.65055315,143.91,143.9,3.22]
[1764181504711,18.59934058,143.91,143.89,1.99999999]
[1764181504922,6.94878743,143.91,143.9,3.22]
[1764181505298,6.94782185,143.93,143.9,3.22]
[1764181505500,34.72705635,143.98,143.9,3.22]
[1764181505501,17.36616295,143.96,143.9,3.22]
[1764181506005,11.65055315,143.92,143.9,3.22]
[1764181506509,11.65055315,143.95,143.91,1.99999999]
[1764181506690,11.65055315,143.95,143.9,74.48973576]
[1764181506898,11.65055315,143.95,143.91,1.99999999]
[1764181507109,11.65055315,143.94,143.9,55.88999999]
[1764181507407,11.65055315,143.94,143.91,1.99999999]
[1764181507715,11.65055315,143.98,143.94,1.99999999]
[1764181507891,11.65055315,143.98,143.95,3.22]
[1764181508289,3.22,144.07,143.96,55.21999999]
[1764181508489,11.65055315,143.99,143.96,55.21999999]
[1764181508684,11.65055315,143.98,143.97,3.22]
[1764181508901,11.65055315,143.98,143.93,1.99999999]
[1764181509103,11.65055315,144.0,143.94,3.22]
[1764181509104,11.65055315,143.95,143.94,3.22]
[1764181509915,16.308864,144.03,143.94,3.22]
[1764181510113,11.65055315,143.98,143.95,1.99999999]
[1764181510598,11.65055315,143.98,143.95,6.94683883]
[1764181510807,11.65055315,143.99,143.96,50.0]
[1764181511003,59.00728911,144.05,143.97,5.21999999]
[1764181511209,11.65055315,144.0,143.97,5.21999999]
[1764181511505,11.65055315,144.0,143.99,1.99999999]
[1764181511903,11.65055315,144.01,143.98,1.99999999]
[1764181512110,11.65055315,144.01,143.99,1.99999999]
[1764181512415,6.94396222,144.01,144.0,3.22]
[1764181513110,6.94010687,144.09,144.0,3.22]
[1764181513309,6.9381808,144.13,144.06,1.99999999]
[1764181513489,11.65055315,144.09,144.07,3.22]
[1764181513689,11.65055315,144.08,144.07,3.22]
[1764181514395,18.59118412,144.08,144.07,3.22]
[1764181515111,11.65055315,144.08,144.07,3.22]
[1764181515418,11.65055315,144.09,144.07,3.22]
[1764181515796,11.65055315,144.08,144.07,3.22]
[1764181516500,18.59126716,144.08,144.06,1.99999999]
[1764181516817,17.34906315,144.1,144.06,1.99999999]
[1764181516818,6.9402749,144.09,144.07,3.22]
[1764181517001,6.9402749,144.09,144.08,3.22]
[1764181518011,18.59082805,144.09,144.08,3.22]
[1764181518713,18.59082805,144.09,144.06,1.99999999]
[1764181518919,6.9402749,144.09,144.07,3.22]
[1764181519213,11.65055315,144.08,144.07,3.22]
[1764181520902,18.59114171,144.08,144.07,3.22]
[1764181521396,18.59114171,144.08,144.03,50.0]
[1764181521602,11.65055315,144.04,143.99,51.99999999]
[1764181521908,24.29205996,144.08,144.0,5.21999999]
[1764181522100,9.09426806,144.03,143.92,0.71]
[1764181522295,16.308864,144.0,143.93,3.22]
[1764181522501,24.30724355,143.99,143.93,3.22]
[1764181522899,11.65055315,143.94,143.93,3.22]
[1764181523099,24.30724355,143.99,143.93,3.22]
[1764181523413,11.65055315,143.96,143.93,5.92999999]
[1764181523606,11.65055315,143.95,143.93,5.92999999]
[1764181523806,11.65055315,143.95,143.93,3.93]
[1764181524026,11.65055315,143.95,143.93,5.92999999]
[1764181524324,11.65055315,143.94,143.91,51.99999999]
[1764181524496,11.65055315,143.93,143.92,3.22]
[1764181525100,18.59845517,143.93,143.92,3.22]
[1764181525303,6.94653075,143.96,143.92,3.22]
[1764181525514,11.65055315,143.93,143.92,3.93]
[1764181526022,34.71940089,144.02,143.93,51.99999999]
[1764181526328,46.6022126,144.1,143.95,51.99999999]
[1764181526329,11.65055315,143.98,143.95,51.99999999]
[1764181526528,7.53056624,143.99,143.96,3.22]
[1764181526702,7.53056624,143.99,143.96,3.93]
[1764181527025,7.53056624,143.99,143.96,10.87636266]
[1764181527324,7.53056624,143.98,143.96,3.93]
[1764181527496,7.53056624,143.98,143.96,0.71]
[1764181527696,14.47515412,144.0,143.95,51.99999999]
[1764181528027,7.53056624,143.97,143.96,3.22]
[1764181529131,14.47599908,143.98,143.96,3.22]
[1764181529332,7.53056624,143.97,143.96,3.22]
[1764181530007,14.47599908,143.98,143.96,3.22]
[1764181530407,7.53056624,143.97,143.96,3.22]
[1764181531727,14.47645774,143.97,143.96,3.22]
[1764181533312,14.47645774,143.97,143.92,50.71]
[1764181533627,20.85578226,144.05,143.92,50.0]
[1764181533839,752.72516432,144.18,144.17,1.99999999]
[1764181534001,664.28472074,144.18,144.17,18.62483429]
[1764181534205,664.28472074,144.18,144.17,5.19999999]
[1764181535022,664.28472074,144.18,144.17,24.45836246]
[1764181535225,664.28472074,144.18,144.17,4.79154043]
[1764181535407,664.28472074,144.18,144.17,16.92779622]
[1764181536633,664.28472074,144.18,144.17,9.99154042]
[1764181537013,664.28472074,144.18,144.17,16.92779622]
[1764181537630,663.28472074,144.18,144.17,24.45836246]
[1764181537828,663.28472074,144.18,144.17,16.92779622]
[1764181538230,663.28472074,144.18,144.17,21.25836246]
[1764181538417,663.28472074,144.18,144.17,24.45836246]
[1764181538933,663.28472074,144.18,144.17,40.76722646]
[1764181539610,663.28472074,144.18,144.17,30.03666022]
[1764181539809,663.28472074,144.18,144.17,33.23666022]
[1764181540210,663.28472074,144.18,144.17,40.76722646]
[1764181545122,663.28472074,144.18,144.17,33.23666022]
[1764181546044,663.28472074,144.18,144.17,33.19139326]
[1764181546845,663.28472074,144.18,144.17,24.4130955]
[1764181547020,663.28472074,144.18,144.17,33.19139326]
[1764181547337,663.28472074,144.18,144.17,16.88252926]
[1764181548140,663.28472074,144.18,144.17,24.4130955]
[1764181548317,663.28472074,144.18,144.17,16.88252926]
[1764181549144,656.1937951,144.18,144.17,16.88252926]
[1764181551450,656.1937951,144.18,144.17,24.4130955]
[1764181552346,656.1937951,144.18,144.17,22.7130955]
[1764181552926,656.1937951,144.18,144.17,15.18252926]
[1764181557242,656.1937951,144.18,144.17,8.24627346]
[1764181557439,656.9137951,144.18,144.17,15.18252926]
[1764181559325,656.1937951,144.18,144.17,15.18252926]
[1764181559525,656.9137951,144.18,144.17,15.18252926]
[1764181560243,656.1937951,144.18,144.17,15.18252926]
[1764181560447,656.1937951,144.18,144.17,22.7130955]
[1764181561731,650.98986624,144.18,144.17,31.80736356]
[1764181562429,647.36962904,144.18,144.17,31.80736356]
[1764181562627,558.38004167,144.18,144.17,39.3379298]
[1764181562932,259.57299575,144.18,144.17,39.3379298]
[1764181563254,930.60717505,144.29,144.28,0.29999999]
[1764181563421,938.13774129,144.29,144.28,4.74627347]
[1764181563627,938.13774129,144.29,144.28,4.02627347]
[1764181563838,938.85774129,144.29,144.28,3.2]
[1764181564148,945.7882285,144.29,144.28,3.2]
[1764181564345,963.11444653,144.29,144.25,50.29999999]
[1764181564546,0.72,144.28,144.23,50.29999999]
[1764181564852,0.72,144.28,144.24,3.49999999]
[1764181565052,0.72,144.28,144.25,0.29999999]
[1764181565265,0.72,144.28,144.26,3.2]
[1764181565743,7.53056624,144.27,144.26,3.2]
[1764181565945,0.72,144.28,144.26,3.2]
[1764181566122,0.69,144.27,144.26,3.2]
[1764181566327,8.22056624,144.27,144.26,3.2]
[1764181566942,0.69,144.27,144.26,3.2]
[1764181567152,8.22056624,144.27,144.26,3.2]
[1764181567565,8.22056624,144.27,144.25,3.2]
[1764181567784,8.22056624,144.26,144.25,3.49999999]
[1764181568361,15.1524947,144.26,144.25,3.49999999]
[1764181568760,15.1524947,144.26,144.25,3.2]
[1764181568969,15.1524947,144.26,144.25,3.49999999]
[1764181570047,7.62192846,144.26,144.25,3.49999999]
[1764181570247,15.1524947,144.26,144.25,3.49999999]
[1764181570968,15.1524947,144.26,144.25,3.2]
[1764181571271,15.1524947,144.26,144.25,3.49999999]
[1764181571468,15.1524947,144.26,144.22,0.29999999]
[1764181571469,32.48231585,144.26,144.22,0.29999999]
[1764181571652,7.53056624,144.23,144.22,0.29999999]
[1764181571842,7.53056624,144.23,144.22,3.49999999]
[1764181572050,8.22056624,144.23,144.22,3.49999999]
[1764181572365,8.22056624,144.23,144.2,3.49999999]
[1764181572562,7.53056624,144.21,144.2,3.49999999]
[1764181572959,7.53056624,144.25,144.24,0.29999999]
[1764181573149,7.62227366,144.26,144.24,3.2]
[1764181573346,14.4628399,144.26,144.24,3.2]
[1764181573549,7.53056624,144.26,144.25,0.29999999]
[1764181573751,17.32826833,144.28,144.25,0.29999999]
[1764181573951,8.22056624,144.26,144.25,0.29999999]
[1764181574153,8.22056624,144.26,144.24,3.2]
[1764181574352,8.23056624,144.25,144.24,3.49999999]
[1764181574552,0.7,144.25,144.24,3.49999999]
[1764181574766,7.53056624,144.25,144.24,3.49999999]
[1764181575272,6.93223146,144.26,144.25,0.29999999]
[1764181575273,14.4627977,144.26,144.25,0.29999999]
[1764181575457,14.4627977,144.26,144.24,3.2]
[1764181575657,7.53056624,144.25,144.24,3.2]
[1764181575975,7.53056624,144.25,144.24,7.99047427]
[1764181576152,0.7,144.26,144.25,0.29999999]
[1764181576353,8.23056624,144.26,144.25,5.09047426]
[1764181576767,15.1624947,144.26,144.25,4.79047427]
[1764181577054,15.1624947,144.26,144.25,5.09047426]
[1764181577761,15.1624947,144.26,144.25,4.79047427]
[1764181578051,17.32813647,144.28,144.25,5.09047426]
[1764181578052,6.93162363,144.27,144.25,5.09047426]
[1764181578257,8.23056624,144.26,144.25,0.29999999]
[1764181578489,8.23056624,144.26,144.25,5.13093887]
[1764181578656,930.60717505,144.29,144.28,50.29999999]
[1764181578859,930.60717505,144.29,144.28,58.33093887]
[1764181579163,930.60717505,144.29,144.28,58.99093887]
[1764181579581,930.60717505,144.29,144.28,58.33093887]
[1764181580163,930.60717505,144.29,144.28,73.45247267]
[1764181580369,930.60717505,144.29,144.28,58.99093887]
[1764181581554,930.60717505,144.29,144.28,58.33093887]
[1764181583195,929.16717505,144.29,144.28,82.26241759]
[1764181583391,929.16717505,144.29,144.28,82.40457916]
[1764181583563,929.16717505,144.29,144.28,98.71344316]
[1764181583758,929.16717505,144.29,144.28,82.40457916]
[1764181583981,929.16717505,144.29,144.28,65.86150511]
[1764181584287,929.16717505,144.29,144.28,81.74457916]
[1764181585157,929.16717505,144.29,144.28,55.13093887]
[1764181585360,929.16717505,144.29,144.28,58.33093887]
[1764181585564,929.16717505,144.29,144.28,65.86150511]
[1764181585967,929.16717505,144.29,144.28,72.79247267]
[1764181586378,929.16717505,144.29,144.28,58.33093887]
[1764181586566,929.16717505,144.29,144.28,65.86150511]
[1764181586880,929.16717505,144.29,144.28,58.33093887]
[1764181587281,929.16717505,144.29,144.28,65.86150511]
[1764181587872,929.16717505,144.29,144.28,58.33093887]
[1764181588195,929.86717505,144.29,144.28,58.33093887]
[1764181588685,929.86717505,144.29,144.28,58.03093888]
[1764181588987,948.4012136,144.29,144.28,58.03093888]
[1764181589182,948.4012136,144.29,144.28,8.03093888]
[1764181589379,948.4012136,144.29,144.28,4.11093888]
[1764181590264,968.92743163,144.29,144.2,50.29999999]
[1764181590467,11.60355134,144.21,144.2,3.49999999]
[1764181590885,0.7,144.21,144.2,3.49999999]
[1764181592825,7.63433187,144.21,144.2,3.49999999]
[1764181592980,8.95210649,144.28,144.21,0.29999999]
[1764181592981,17.3274189,144.28,144.21,0.29999999]
[1764181593163,11.60355134,144.24,144.21,0.29999999]
[1764181593364,11.60355134,144.24,144.22,0.29999999]
[1764181593565,12.30355134,144.23,144.22,0.29999999]
[1764181593763,0.7,144.27,144.22,3.49999999]
[1764181593976,11.60355134,144.23,144.22,3.49999999]
[1764181594178,0.7,144.27,144.24,0.29999999]
[1764181594487,11.60355134,144.25,144.24,0.29999999]
[1764181594873,0.7,144.25,144.24,0.29999999]
[1764181595067,12.30355134,144.25,144.24,0.29999999]
[1764181597296,19.23596035,144.25,144.24,0.29999999]
[1764181597491,19.23596035,144.25,144.23,0.29999999]
[1764181597802,12.30355134,144.24,144.22,3.2]
[1764181598094,11.60355134,144.23,144.22,3.2]
[1764181598269,12.30355134,144.23,144.2,0.29999999]